Cogmind - Beta 13 @@@ ROGUE MODE // 2024.04.05 @ 23:16:46 Player: xeen Result: Destroyed by Y-45 Defender with Heavy Assault Rifle Performance ------------- Evolutions (1) 500 Regions Visited (3) 600 Robots Destroyed (12) 60 Value Destroyed (335) 335 Prototype IDs (0) 0 Alien Tech Used (0) 0 Bonus (0) 0 TOTAL SCORE: 1495 Bonus ------- None Cogmind --------- Core Integrity 0/400 Matter 300/300 Energy 99/100 System Corruption 0% Temperature Cool (9) Movement Core (400) Ox7 Location -9/Materials Parts ------- > --- POWER (1) -------- (None) > --- PROPULSION (3) --- (None) > --- UTILITY (3) ------ Large Storage Unit > --- WEAPON (2) ------- Medium Laser > --- INVENTORY (15) --- (None) Peak State ------------ > --- POWER ------------ Light Nuclear Core > --- PROPULSION ------- Aluminum Leg Aluminum Leg > --- UTILITY ---------- Large Storage Unit Medium Matter Pod Sensor Array > --- WEAPON ----------- Medium Laser Light Assault Rifle > --- INVENTORY -------- Medium Laser [Rating: 10] Favorites ----------- Power Light Nuclear Core Engine Light Ion Engine Power Core Light Nuclear Core Propulsion Aluminum Leg Leg Aluminum Leg Wheel Wheel Flight Unit Flight Unit Utility Sensor Array Device Sensor Array Storage Medium Matter Pod Protection Light Armor Plating Weapon Light Assault Rifle Energy Gun Medium Laser Ballistic Gun Light Assault Rifle Launcher Grenade Launcher Build | -11 -10 -10 -9 ------- Run | Yrd Mat Min Mat Slots Evolved 2 | . . . 2 Power . | . . . . Propulsion 1 | . . . 1 Utility 1 | . . . 1 Weapon . | . . . . Parts Attached 20 | 5 5 6 4 Power 3 | 1 . 1 1 Engine 1 | 1 . . . Core 2 | . . 1 1 Reactor . | . . . . Propulsion 7 | 2 1 4 . Treads . | . . . . Leg 2 | . . 2 . Wheel 3 | 2 1 . . Hover . | . . . . Flight 2 | . . 2 . Utility 5 | . 4 . 1 Device 2 | . 2 . . Storage 2 | . 1 . 1 Processor . | . . . . Hackware . | . . . . Protection 1 | . 1 . . Artifact . | . . . . Weapon 5 | 2 . 1 2 Energy Gun 2 | 1 . . 1 Energy Cannon . | . . . . Ballistic Gun 2 | 1 . 1 . Ballistic Cannon . | . . . . Launcher 1 | . . . 1 Special Weapon . | . . . . Impact Weapon . | . . . . Slashing Weapon . | . . . . Piercing Weapon . | . . . . Special Melee Weapon . | . . . . Unidentified Prototypes . | . . . . Parts Lost 8 | . . 2 6 Power 2 | . . 1 1 Propulsion 1 | . . . 1 Utility 2 | . . . 2 Weapon 3 | . . 1 2 Highest Loss Streak 2 | . . 1 2 To Critical Strikes . | . . . . Average Slot Usage (%) 76 | . 92 96 56 Engine 3 | . 14 4 . Core 6 | . . 8 5 Leg 11 | . . 16 10 Wheel 6 | . 28 5 . Flight 1 | . . 4 . Device 10 | . 14 14 6 Storage 13 | . 5 14 16 Energy Gun 10 | . 14 14 6 Ballistic Gun 11 | . 14 12 10 Naked Turns . | . . . . Heaviest Build 31 | 6 10 11 31 Greatest Support 20 | 20 20 20 20 Greatest Overweight (x) 7 | . . 3 7 Average Overweight (x) . | . . . 2 Largest Inventory Capacity 15 | 5 5 5 15 Average Capacity 9 | 5 5 5 14 Most Carried 5 | 2 4 5 3 Average Carried 1 | . 2 1 . Final Capacity 15 | 5 5 5 15 Final Carried 4 | 2 4 1 . Class Distribution -------------------- 79% | Mutant 20% | Scavenger-Mutant Dominant Class ---------------- Mutant | -10/Materials Mutant | -10/Mines Mutant | -9/Materials Resources | -11 -10 -10 -9 ----------- Run | Yrd Mat Min Mat Matter Collected 499 | 252 57 155 35 Remotely . | . . . . Salvage Created 383 | 46 57 169 111 Parts 23 | 4 1 14 4 Haulers Intercepted . | . . . . Recyclers Shooed 1 | . . . 1 Parts Field Recycled . | . . . . Retrieved Matter . | . . . . Parts Self-Destructed . | . . . . Prevented . | . . . . Kills | -11 -10 -10 -9 ------- Run | Yrd Mat Min Mat Combat Hostiles Destroyed 12 | 1 1 7 3 Guns 11 | 1 1 7 2 AOE 1 | . . . 1 Classes Destroyed 3 | 1 . 1 1 Swarmer 5 | . . 5 . Grunt 6 | 1 1 2 2 Sentry 1 | . . . 1 Best Kill Streak 3 | 1 1 3 2 Combat Bots Only 3 | 1 1 3 2 Max Kills in Single Turn 1 | 1 1 1 1 Gunslinging . | . . . . Exploded 1 | . . . 1 Melee . | . . . . Uniques/NPCs Destroyed . | . . . . Combat | -11 -10 -10 -9 -------- Run | Yrd Mat Min Mat Hostile Shots Fired 124 | 2 4 51 67 Missed 34 | . 1 17 16 Damage Taken 1118 | 22 42 329 725 Core 469 | 10 . 57 402 Absorbed by Shields . | . . . . Core Remaining (%) 84 | 96 . 73 . Volleys Fired 32 | 2 3 17 10 Largest 2 | 2 2 2 2 Hottest 70 | 70 70 70 50 Shots Fired 48 | 4 6 26 12 Gun 46 | 4 6 26 10 Cannon . | . . . . Launcher 2 | . . . 2 Special . | . . . . Kinetic 24 | 2 3 9 10 Thermal 22 | 2 3 17 . Explosive 2 | . . . 2 Electromagnetic . | . . . . Robot Hit Streak 10 | 2 5 9 10 Robot Miss Streak 2 | 2 1 2 1 Penetration Max . | . . . . Secondary Targets . | . . . . Shots Hit Robots 34 | 2 5 17 10 Core Hits 26 | 2 3 10 11 Critical Kills . | . . . . Critical Parts Destroyed . | . . . . Critical Strikes 2 | . 1 1 . Burn 2 | . 1 1 . Melee Attacks . | . . . . Impact . | . . . . Slashing . | . . . . Piercing . | . . . . Sneak Attacks . | . . . . Combat Hostiles . | . . . . Follow-up Attacks . | . . . . Damage Inflicted 437 | 22 55 186 174 Guns 333 | 22 55 186 70 Cannons . | . . . . Explosions 98 | . . . 98 Melee . | . . . . Ramming 6 | . . . 6 Kinetic 157 | 9 18 60 70 Thermal 176 | 13 37 126 . Explosive 98 | . . . 98 Electromagnetic . | . . . . Impact . | . . . . Slashing . | . . . . Piercing . | . . . . Highest Corruption . | . . . . Average Corruption . | . . . . Corruption Purged . | . . . . Corruption Blocked . | . . . . Overload Shots . | . . . . Overflow Damage . | . . . . Projectiles . | . . . . Explosions . | . . . . Melee . | . . . . Knockbacks . | . . . . Impact . | . . . . Kinetic . | . . . . Secondary . | . . . . Self-Inflicted Damage . | . . . . Shots . | . . . . Rammed . | . . . . Targets Rammed 1 | . . . 1 Kicked 1 | . . . 1 Crushed . | . . . . Highest Temperature 96 | 72 88 96 3 Average Temperature 43 | 40 50 44 2 Received Heat Transfer 384 | 12 24 84 264 Siege Activations . | . . . . Robots Corrupted . | . . . . Combat Hostiles . | . . . . Parts Fried . | . . . . Impact Corruptions . | . . . . Robots Melted . | . . . . Combat Hostiles . | . . . . Parts Melted 3 | . 1 2 . Heat Transferred 666 | 37 185 444 . Parts Sabotaged . | . . . . Parts Stolen . | . . . . Parts Stripped . | . . . . Power Chain Reactions . | . . . . Alert | -11 -10 -10 -9 ------- Run | Yrd Mat Min Mat Peak Influence 171 | 20 43 171 80 Initial 16 | . 13 16 . Average 29 | 3 16 63 10 Maximum Alert Level . | . . . . Low Security (%) 100 | 100 100 100 100 Level 1 . | . . . . Level 2 . | . . . . Level 3 . | . . . . Level 4 . | . . . . Level 5 . | . . . . High Security . | . . . . Max Security . | . . . . Squads Dispatched 1 | . . . 1 Investigation . | . . . . Extermination . | . . . . Reinforcement 1 | . . . 1 Assault . | . . . . Garrison . | . . . . Intercept . | . . . . Searches Triggered . | . . . . Construction Impeded . | . . . . Haulers Reinforced . | . . . . Active Scanning Responses . | . . . . Cargo Convoy Interrupts . | . . . . Stealth | -11 -10 -10 -9 --------- Run | Yrd Mat Min Mat Distress Signals 1 | . . . 1 Communications Jammed . | . . . . Distress Signals . | . . . . Times Spotted 22 | 1 2 11 8 Peak Tracking Total 3 | 1 2 3 3 Tactical Retreats 1 | . . 1 . Traps | -11 -10 -10 -9 ------- Run | Yrd Mat Min Mat Traps Triggered 2 | . 1 . 1 Indirectly . | . . . . Trap Hack Attempts . | . . . . Triggered . | . . . . Disarmed . | . . . . Reprogrammed . | . . . . Reused . | . . . . Traps Extracted . | . . . . Installed . | . . . . Triggered . | . . . . Machines | -11 -10 -10 -9 ---------- Run | Yrd Mat Min Mat Machines Disabled 1 | . . . 1 Max in Single Turn 1 | . . . 1 Machines Repaired . | . . . . Machines Dismantled . | . . . . Machines Sabotaged . | . . . . Overloaded Fab Kills . | . . . . Hacking | -11 -10 -10 -9 --------- Run | Yrd Mat Min Mat Machines Accessed 1 | . 1 . . Terminals . | . . . . Fabricators . | . . . . Repair Stations . | . . . . Recycling Units 1 | . 1 . . Scanalyzers . | . . . . Garrison Access . | . . . . Total Hacks 1 | . 1 . . Successful . | . . . . Failed 1 | . 1 . . Catastrophic . | . . . . Database Lockouts . | . . . . Manual . | . . . . Terminals . | . . . . Fabricators . | . . . . Repair Stations . | . . . . Recycling Units 1 | . 1 . . Scanalyzers . | . . . . Garrison Access . | . . . . Terminal Hacks . | . . . . Fabricator Hacks . | . . . . Repair Station Hacks . | . . . . Recycling Unit Hacks . | . . . . Scanalyzer . | . . . . Garrison Access Hacks . | . . . . Unauthorized Hacks . | . . . . Terminals . | . . . . Fabricators . | . . . . Repair Stations . | . . . . Recycling Units . | . . . . Scanalyzers . | . . . . Garrison Access . | . . . . Data Cores Recovered . | . . . . Used . | . . . . Hacking Detections 1 | . 1 . . Full Trace Events . | . . . . Feedback Events . | . . . . Feedback Blocked . | . . . . Robot Schematics Acquired . | . . . . Robots Built . | . . . . Authchips . | . . . . Time . | . . . . Total Robot Build Rating . | . . . . Part Schematics Acquired . | . . . . Parts Built . | . . . . Authchips . | . . . . Time . | . . . . Total Part Build Rating . | . . . . Parts Repaired . | . . . . Time . | . . . . Parts Recycled . | . . . . Recycled Matter . | . . . . Retrieved Matter . | . . . . Retrieved Components . | . . . . Parts Scanalyzed . | . . . . Part Schematics Acquired . | . . . . Parts Damaged . | . . . . Bothacking | -11 -10 -10 -9 ------------ Run | Yrd Mat Min Mat Used RIF Installer . | . . . . Robots Hacked . | . . . . Non-combat . | . . . . Combat . | . . . . Robot Hacks Applied . | . . . . Relay Couplers Released . | . . . . Fabnet Peak Effective % . | . . . . Robots Rewired . | . . . . Allies Hacked . | . . . . Hacks Repelled . | . . . . Allies | -11 -10 -10 -9 -------- Run | Yrd Mat Min Mat Total Allies . | . . . . Largest Group . | . . . . Highest-Rated Group . | . . . . Highest-Rated Ally . | . . . . Total Orders . | . . . . Ally Attacks . | . . . . Total Damage . | . . . . Kills . | . . . . Allies Corrupted . | . . . . Allies Melted . | . . . . Intel | -11 -10 -10 -9 ------- Run | Yrd Mat Min Mat Robot Analysis Total . | . . . . Derelict Logs Recovered . | . . . . Drone Launches . | . . . . Drone Recoveries . | . . . . Exploration | -11 -10 -10 -9 ------------- Run | Yrd Mat Min Mat Turns Passed 1328 | 76 174 472 606 Spaces Moved 880 | 80 194 377 229 Core 80 | 18 . 9 53 Treads . | . . . . Legs 392 | . . 216 176 Wheels 361 | 62 194 105 . Hover . | . . . . Flight 47 | . . 47 . Fastest Speed 37 | 50 80 37 120 Average Speed 137 | 73 80 109 253 Slowest Speed 400 | 80 80 200 400 Overloaded Moves . | . . . . Propulsion Burnouts . | . . . . Robots Hopped . | . . . . Cave-ins Triggered . | . . . . Exploration Rate (%) 23 | 6 23 50 15 Regions Visited 3 Branch Regions 1 Pre-discovered Areas . | . . . . Known Exits Taken . | . . . . Unknown Exits Taken 3 | 1 1 1 . Scrap Searched . | . . . . Spaces Dug . | . . . . Terrain Destroyed . | . . . . Melee . | . . . . Projectile . | . . . . AOE . | . . . . Terrain Rammed . | . . . . Walls Destroyed . | . . . . Machines Disabled . | . . . . Actions | -11 -10 -10 -9 --------- Run | Yrd Mat Min Mat Total 960 | 93 206 414 247 Wait . | . . . . Move 877 | 79 193 376 229 Hop . | . . . . Pick Up 22 | 7 5 7 3 Fast Attach . | . . . . Attach 16 | 5 3 4 4 Detach . | . . . . Swap 4 | . 2 2 . Drop 8 | . . 8 . Fire 32 | 2 3 17 10 Melee . | . . . . Ram . | . . . . Kick 1 | . . . 1 Crush . | . . . . Escape Stasis . | . . . . Rewire . | . . . . Trap . | . . . . Miscellaneous . | . . . . Route ------- -11/Scrapyard -10/Materials -10/Mines -9/Materials History --------- Turn | Location | Event 2 | -11/Scrapyard | Met Revision 17 57 | -11/Scrapyard | Discovered new exit (range 8) 77 | -11/Scrapyard | Entered Materials 154 | -10/Materials | Discovered new exit (range 15) 251 | -10/Materials | Entered Mines 303 | -10/Mines | Build established: Mutant 710 | -10/Mines | Discovered new exit (range 11) 723 | -10/Mines | Entered Materials 723 | -9/Materials | Evolved 2 slots: Propulsion x1, Utility x1 1114 | -9/Materials | Core integrity fell below 50% 1315 | -9/Materials | Core integrity fell below 20% 1329 | -9/Materials | Destroyed by Y-45 Defender with Heavy Assault Rifle Last Messages --------------- U-05 Engineer lays Concrete. Grenade Launcher destroyed. U-05 Engineer lays Concrete. K-01 Serf collects debris. U-05 Engineer lays Concrete. Sensor Array destroyed. U-05 Engineer lays Concrete. U-05 Engineer builds a Door. Aluminum Leg destroyed. Y-45 Defender destroyed. Acquired 35 matter. R-06 Scavenger collects Heat Sink. K-01 Serf collects debris. R-06 Scavenger collects Hvy. Assault Rifle. K-01 Serf collects debris. R-06 Scavenger collects Imp. Ion Engine. K-01 Serf cleans the Neutrino Reactor. Critical hit (Burn: +37). Lgt. Assault Rifle destroyed. Critical hit (Burn: +37). Map ----- +----------------------------------------------------+ | ?????????####+########## # """ = #??????????? | | ???????????????????????##### # """ #??????????? | | ???????????????????????????# # """ #??????????? | | ???????????????????????????# # #??????????? | | ???????????????????????????# ##############??????? | | ???????????????????????????# #??# #??????? | | ???????????????????????????# #??# #??????? | | ???????????????????????????# #??# #??????? | | ??????????????????########?# #??# #??????? | | ??????????????????# #?# #??# """ """ ######?? | | ??????????????????# """" #?# #??# """ """ # ?? | | ??????????????????# """" #?# #??# """ """ # #? | | ??????????????????# """" #?# #??# % # """ #? | | ??????????????????# ### ##########+### """ #? | | ??????????????????# """" # # """ #? | | ??????????????????# """" # # """ #? | | ??????????????????# """" + [/ + """ #? | | ??????????????????# # [/% # #? | | ??????????????????# """" # [ # #? | | ??????????????????# """" # ## #? | | ??????????????????# """" # a ## #? | | ??????????????????# # " ## #? | | ??????????????????######## Y " "" ########? | | ?????????????####### # """"" #???????? | | ?????????? #???????? | | ?????????? @ k a #???????? | | ?????????? k ######## ??????? | | ?????????????# ### ######??????# !!????? | | ???????????????????######????????????# ==#???? | | ?????????????????????????????????????# ==#???? | | ?????????????????????????????????????# !!#???? | | ?????????????????????????????????????? !!#???? | | ?????????????????????????????????????? #####???? | | ?????????????????????????????????????? ???????? | | ?????????????????????????????????????? ???????? | | ?????????????????????????????????????? ????????? | | ?????????????????????????????????????????????????? | | ?????????????????????????????????????????????????? | | ?????????????????????????????????????????????????? | | ?????????????????????????????????????????????????? | | ?????????????????????????????????????????????????? | | ?????????????????????????????????????????????????? | | ?????????????????????????????????????????????????? | | ?????????????????????????????????????????????????? | | ?????????????????????????????????????????????????? | | ?????????????????????????????????????????????????? | | ?????????????????????????????????????????????????? | | ?????????????????????????????????????????????????? | | | | | +----------------------------------------------------+ Best States ------------- Heat Dissipation 35 Energy Generation 14 Energy Capacity 160 Matter Stores 400 Matter Capacity 400 Sight Range 16 Robot Scan Range 14 Terrain Scan Density 10 Armor Coverage 150 Evasion (%) 55 Item Schematics ----------------- None Robot Schematics ------------------ None Fabricated ------------ Nothing Alien Tech Used ----------------- None Achievements -------------- None Challenges ------------ None Game ------ Seed MediumIntegrityPit Manual? 0 Play Time 00:15:03 Cumulative 0.7 hours Start 2024.04.05 @ 23:02:12 End 2024.04.05 @ 23:16:46 Sessions 1 Manual Loads 0 Difficulty Rogue Special Mode None Game No. 2 Rogue 2 Adventurer 0 Explorer 0 Win Type - Total 0 Types 0/0/0/0/0/0/0/0/0 Lore% 0 Gallery% 2 Achievement% 1 Wizard Run 0 Options --------- Layout 1 ASCII 0 Keyboard 0 Movement Mouse Keybinds 0 Fullscreen 1 Font 24/Smallcaps Map View 50x35 Zoom Use 0% Tactical HUD 0 Map Filters NONE Filters NONE Steam 1 RUN: 21f91101-7daa-4576-9f97-436f441227ac